fUSD/lending_fUSD_20250125
["ID","MTS","AMOUNT","RATE_DAILY","PERIOD"]
[350379953,1737817854349,-1456.98,0.00018707,2]
[350379954,1737817854360,-500.0,0.00018707,2]
[350379955,1737817854372,-500.0,0.00018707,2]
[350379956,1737817854383,-163.82,0.00018751,2]
[350379957,1737817854394,-1297.14587394,0.00018762,2]
[350379958,1737817854406,-500.0,0.00018765,2]
[350379959,1737817854417,-661.05,0.00018765,2]
[350379960,1737817854430,-774.87,0.00018765,2]
[350379961,1737817854443,-622.57,0.00018765,2]
[350379962,1737817854454,-1023.31,0.00018765,2]
[350379963,1737817854467,-984.99,0.00018765,2]
[350379964,1737817854479,-1446.5,0.00018765,2]
[350379965,1737817854490,-500.0,0.00018765,2]
[350379966,1737817854503,-500.0,0.00018765,2]
[350379967,1737817854514,-710.7,0.00018765,2]
[350379968,1737817854525,-500.0,0.00018766,2]
[350379969,1737817854536,-500.0,0.00018766,2]
[350379970,1737817854547,-500.0,0.00018766,2]
[350379971,1737817854557,-1337.53,0.00018766,2]
[350379972,1737817854569,-500.0,0.00018766,2]
[350379973,1737817854582,-657.38,0.00018766,2]
[350379974,1737817854594,-997.01,0.00018766,2]
[350379975,1737817854605,-600.23,0.00018766,2]
[350379976,1737817854616,-530.0,0.00018766,2]
[350379977,1737817854627,-1729.67,0.00018766,2]
[350379978,1737817854639,-619.83,0.00018766,2]
[350379979,1737817854651,-500.0,0.00018766,2]
[350379980,1737817854662,-624.67,0.00018766,2]
[350379981,1737817854673,-806.03,0.00018766,2]
[350379982,1737817854684,-984.41,0.00018766,2]
[350379983,1737817854695,-500.0,0.00018766,2]
[350379984,1737817854705,-1058.09,0.00018766,2]
[350379985,1737817854717,-500.0,0.00018766,2]
[350379986,1737817854728,-500.0,0.00018766,2]
[350379987,1737817854738,-500.0,0.00018766,2]
[350379988,1737817854750,-961.97,0.00018766,2]
[350379989,1737817854761,-1405.7,0.00018766,2]
[350379990,1737817854771,-349.8,0.00018766,2]
[350379991,1737817854783,-500.0,0.00018766,2]
[350379992,1737817854794,-794.91,0.00018766,2]
[350379993,1737817854805,-500.0,0.00018844,2]
[350379994,1737817854816,-706.44,0.00018844,2]
[350379995,1737817854827,-838.96,0.00018844,2]
[350379996,1737817854839,-645.66,0.00018844,2]
[350379997,1737817854851,-1456.98,0.00018844,2]
[350379998,1737817854861,-500.0,0.00018844,2]
[350379999,1737817854871,-500.0,0.00018844,2]
[350380000,1737817854880,-1500.0,0.00018864,2]
[350380001,1737817854890,-500.0,0.00018902,2]
[350380002,1737817854899,-661.05,0.00018902,2]
[350380003,1737817854910,-774.87,0.00018902,2]
[350380004,1737817854919,-622.57,0.00018902,2]
[350380005,1737817854929,-1023.31,0.00018902,2]
[350380006,1737817854939,-984.99,0.00018902,2]
[350380007,1737817854948,-500.0,0.00018902,2]
[350380008,1737817854957,-610.02,0.00018902,2]
[350380009,1737817854967,-710.7,0.00018902,2]
[350380010,1737817854977,-189.87,0.00018903,2]
[350380011,1737817854987,-500.0,0.00018903,2]
[350380012,1737817854996,-500.0,0.00018903,2]
[350380013,1737817855006,-1337.53,0.00018903,2]
[350380014,1737817855015,-500.0,0.00018903,2]
[350380015,1737817855025,-657.38,0.00018903,2]
[350380016,1737817855035,-997.01,0.00018903,2]
[350380017,1737817855044,-600.23,0.00018903,2]
[350380018,1737817855054,-530.0,0.00018903,2]
[350380019,1737817855063,-1729.67,0.00018903,2]
[350380020,1737817855073,-619.83,0.00018903,2]
[350380021,1737817855083,-606.68,0.00018903,2]
[350380022,1737817855092,-624.67,0.00018903,2]
[350380023,1737817855102,-806.03,0.00018903,2]
[350380024,1737817855112,-984.41,0.00018903,2]
[350380025,1737817855121,-314.94,0.00018903,2]
[350380026,1737817855130,-1058.09,0.00018903,2]
[350380027,1737817855140,-500.0,0.00018903,2]
[350380028,1737817855150,-500.0,0.00018903,2]
[350380029,1737817855159,-500.0,0.00018903,2]
[350380030,1737817855169,-961.97,0.00018903,2]
[350380031,1737817855179,-1405.7,0.00018903,2]
[350380032,1737817855188,-500.0,0.00018903,2]
[350380033,1737817855198,-794.91,0.00018903,2]
[350380034,1737817855208,-165.38,0.00018921,2]
[350380035,1737817855219,-410.82,0.00018953,2]
[350380036,1737817855228,-500.0,0.00018981,2]
[350380037,1737817855238,-706.44,0.00018981,2]
[350380038,1737817855249,-838.96,0.00018981,2]
[350380039,1737817855259,-645.66,0.00018981,2]
[350380040,1737817855269,-1456.98,0.00018981,2]
[350380041,1737817855279,-500.0,0.00018981,2]
[350380042,1737817855289,-500.0,0.00018981,2]
[350380043,1737817855300,-500.0,0.00018986,2]
[350380044,1737817855310,-10993.8457363,0.00019,2]
[350380045,1737817855321,-49236.45,0.00019,2]
[350380046,1737817855332,-650.0,0.00019,2]
[350380047,1737817855342,-250.0,0.00019,2]
[350380048,1737817855352,-1297.14587394,0.00019003,2]
[350380049,1737817855362,-342.04,0.00019039,2]
[350380050,1737817855372,-661.05,0.00019039,2]
[350380051,1737817855382,-774.87,0.00019039,2]
[350380052,1737817855392,-622.57,0.00019039,2]
[350380053,1737817855402,-1023.31,0.00019039,2]
[350380054,1737817855412,-984.99,0.00019039,2]
[350380055,1737817855420,-500.0,0.00019039,2]
[350380056,1737817855432,-710.7,0.00019039,2]
[350380057,1737817855442,-165.8,0.0001904,2]
[350380058,1737817855452,-500.0,0.0001904,2]
[350380059,1737817855462,-1337.53,0.0001904,2]
[350380060,1737817855474,-500.0,0.0001904,2]
[350380061,1737817855484,-657.38,0.0001904,2]
[350380062,1737817855494,-997.01,0.0001904,2]
[350380063,1737817855503,-600.23,0.0001904,2]
[350380064,1737817855515,-530.0,0.0001904,2]
[350380065,1737817855526,-1729.67,0.0001904,2]
[350380066,1737817855535,-619.83,0.0001904,2]
[350380067,1737817855546,-624.67,0.0001904,2]
[350380068,1737817855556,-806.03,0.0001904,2]
[350380069,1737817855566,-984.41,0.0001904,2]
[350380070,1737817855575,-1058.09,0.0001904,2]
[350380071,1737817855586,-500.0,0.0001904,2]
[350380072,1737817855596,-500.0,0.0001904,2]
[350380073,1737817855606,-429.4,0.0001904,2]
[350380074,1737817855616,-961.97,0.0001904,2]
[350380075,1737817855626,-1405.7,0.0001904,2]
[350380076,1737817855952,-500.0,0.0001904,2]
[350380077,1737817855963,-794.91,0.0001904,2]
[350380078,1737817855973,-346.3,0.00019118,2]
[350380079,1737817855982,-706.44,0.00019118,2]
[350380080,1737817855992,-838.96,0.00019118,2]
[350380081,1737817856002,-645.66,0.00019118,2]
[350380082,1737817856012,-1456.98,0.00019118,2]
[350380083,1737817856022,-500.0,0.00019118,2]
[350380084,1737817856032,-500.0,0.00019118,2]
[350380085,1737817856042,-11008.57607701,0.00019131,2]
[350380086,1737817856052,-661.05,0.00019176,2]
[350380087,1737817856062,-774.87,0.00019176,2]
[350380088,1737817856071,-622.57,0.00019176,2]
[350380089,1737817856081,-1023.31,0.00019176,2]
[350380090,1737817856091,-984.99,0.00019176,2]
[350380091,1737817856100,-500.0,0.00019176,2]
[350380092,1737817856110,-710.7,0.00019176,2]
[350380093,1737817856120,-500.0,0.00019177,2]
[350380094,1737817856129,-1337.53,0.00019177,2]
[350380095,1737817856140,-500.0,0.00019177,2]
[350380096,1737817856149,-657.38,0.00019177,2]
[350380097,1737817856159,-997.01,0.00019177,2]
[350380098,1737817856169,-600.23,0.00019177,2]
[350380099,1737817856179,-530.0,0.00019177,2]
[350380100,1737817856188,-1729.67,0.00019177,2]
[350380101,1737817856198,-619.83,0.00019177,2]
[350380102,1737817856208,-624.67,0.00019177,2]
[350380103,1737817856217,-806.03,0.00019177,2]
[350380104,1737817856227,-984.41,0.00019177,2]
[350380105,1737817856237,-1058.09,0.00019177,2]
[350380106,1737817856246,-295.66,0.00019177,2]
[350380107,1737817856256,-961.97,0.00019177,2]
[350380108,1737817856266,-1405.7,0.00019177,2]
[350380109,1737817856276,-500.0,0.00019177,2]
[350380110,1737817856286,-794.91,0.00019177,2]
[350380111,1737817856295,-1297.14587394,0.00019245,2]
[350380112,1737817856305,-706.44,0.00019255,2]
[350380113,1737817856314,-838.96,0.00019255,2]
[350380114,1737817856324,-645.66,0.00019255,2]
[350380115,1737817856334,-1456.98,0.00019255,2]
[350380116,1737817856344,-500.0,0.00019255,2]
[350380117,1737817856354,-649.31,0.00019255,2]
[350380118,1737817856364,-661.05,0.00019313,2]
[350380119,1737817856373,-774.87,0.00019313,2]
[350380120,1737817856383,-622.57,0.00019313,2]
[350380121,1737817856392,-1023.31,0.00019313,2]
[350380122,1737817856402,-984.99,0.00019313,2]
[350380123,1737817856411,-543.06,0.00019313,2]
[350380124,1737817856422,-710.7,0.00019313,2]
[350380125,1737817856434,-500.0,0.00019314,2]
[350380126,1737817856443,-1337.53,0.00019314,2]
[350380127,1737817856453,-500.0,0.00019314,2]
[350380128,1737817856462,-657.38,0.00019314,2]
[350380129,1737817856473,-997.01,0.00019314,2]
[350380130,1737817856483,-600.23,0.00019314,2]
[350380131,1737817856493,-530.0,0.00019314,2]
[350380132,1737817856503,-1729.67,0.00019314,2]
[350380133,1737817856515,-619.83,0.00019314,2]
[350380134,1737817856524,-624.67,0.00019314,2]
[350380135,1737817856534,-806.03,0.00019314,2]
[350380136,1737817856544,-984.41,0.00019314,2]
[350380137,1737817856553,-1058.09,0.00019314,2]
[350380138,1737817856564,-961.97,0.00019314,2]
[350380139,1737817856573,-1405.7,0.00019314,2]
[350380140,1737817856584,-500.0,0.00019314,2]
[350380141,1737817856593,-794.91,0.00019314,2]
[350380142,1737817856604,-200.0,0.00019347,2]
[350380143,1737817856613,-20887.23683814,0.00019348,2]
[350380144,1737817856623,-504.92360409,0.00019349,2]
[350380145,1737817856633,-200.0,0.0001935,2]
[350380146,1737817856643,-90414.7473831,0.00019354,2]
[350380147,1737817856653,-893.14347445,0.00019354,2]
[350380148,1737817856662,-504.92360409,0.00019356,2]
[350380149,1737817856672,-34022.37553896,0.00019356,2]
[350380150,1737817856682,-1302.77707309,0.00019357,2]
[350380151,1737817856691,-504.92360409,0.00019358,2]
[350380152,1737817856700,-4237.25408337,0.00019358,2]
[350380153,1737817856710,-918.23130546,0.00019359,2]
[350380154,1737817856719,-12711.76225011,0.00019361,2]
[350380155,1737817856729,-918.23130546,0.00019361,2]
[350380156,1737817856738,-12387.94726051,0.00019364,2]
[350380157,1737817856748,-4190.07764516,0.00019367,2]
[350380158,1737817856899,-1711.15916454,0.00019367,2]
[350380159,1737817856911,-748.87449202,0.00019367,2]
[350380160,1737817856923,-41545.2375366,0.00019367,2]
[350380161,1737817856934,-2317.9953121,0.00019367,2]
[350380162,1737817856948,-2001.54386087,0.00019367,2]
[350380163,1737817856959,-2391.48698,0.00019367,2]
[350380164,1737817856970,-3402.67345401,0.00019367,2]
[350380165,1737817856981,-1064.78952,0.00019367,2]
[350380166,1737817856992,-1663.32479844,0.00019367,2]
[350380167,1737817857004,-29377.58461936,0.00019367,2]
[350380168,1737817857013,-918.23130546,0.0001937,2]
[350380169,1737817857023,-52686.48494518,0.00019371,2]
[350380170,1737817857507,-500.0,0.00016573,2]
[350380171,1737817857518,-500.0,0.00016573,2]
[350380172,1737817857528,-500.0,0.00016573,2]
[350380173,1737817857537,-500.0,0.00016573,2]
[350380174,1737817857547,-500.0,0.0001671,2]
[350380175,1737817857556,-500.0,0.0001671,2]
[350380176,1737817857566,-285.34,0.00016847,2]
[350380177,1737817857576,-500.0,0.00017259,2]
[350380178,1737817857585,-500.0,0.00017259,2]
[350380179,1737817857595,-500.0,0.00017259,2]
[350380180,1737817857605,-500.0,0.00017259,2]
[350380181,1737817857614,-500.0,0.00017259,2]
[350380182,1737817857624,-500.0,0.00017395,2]
[350380183,1737817857633,-500.0,0.00017396,2]
[350380184,1737817857644,-500.0,0.00017396,2]
[350380185,1737817857654,-500.0,0.00017396,2]
[350380186,1737817857663,-500.0,0.00017532,2]
[350380187,1737817857673,-500.0,0.00017669,2]
[350380188,1737817857683,-500.0,0.00017806,2]
[350380189,1737817857693,-500.0,0.00017943,2]
[350380190,1737817857703,-500.0,0.0001808,2]
[350380191,1737817857712,-500.0,0.00018217,2]
[350380192,1737817857722,-500.0,0.00018354,2]
[350380193,1737817857732,-500.0,0.00018491,2]
[350380194,1737817857742,-500.0,0.00018628,2]
[350380195,1737817857752,-500.0,0.00018765,2]
[350380196,1737817857762,-500.0,0.00018902,2]
[350380197,1737817857772,-500.0,0.00019039,2]
[350380198,1737817857782,-484.22,0.00019176,2]
[350380199,1737817857792,-37728.26243792,0.00019371,2]
[350380200,1737817857802,-2104.22562119,0.00019373,2]
[350380201,1737817857812,-85884.28430623,0.00019374,2]
[350380202,1737817857822,-12387.94726051,0.00019375,2]
[350380203,1737817857832,-893.14347445,0.00019376,2]
[350380204,1737817857841,-206472.03047374,0.00019377,2]
[350380205,1737817857851,-4237.25408336,0.00019378,2]
[350380206,1737817857861,-12711.76225011,0.00019379,2]
[350380207,1737817857871,-34022.37553896,0.00019382,2]
[350380208,1737817857880,-12711.76225011,0.00019384,2]
[350380209,1737817857890,-90414.7473831,0.00019384,2]
[350380210,1737817857900,-893.14347445,0.00019386,2]
[350380211,1737817857909,-20887.23683814,0.00019387,2]
[350380212,1737817857919,-34022.37553896,0.00019387,2]
[350380213,1737817857928,-4237.25408336,0.00019391,2]
[350380214,1737817857939,-200.0,0.00019392,2]
[350380215,1737817857951,-838.96,0.00019392,2]
[350380216,1737817857961,-645.66,0.00019392,2]
[350380217,1737817857971,-1456.98,0.00019392,2]
[350380218,1737817857981,-345.04,0.00019392,2]
[350380219,1737817857992,-12387.94726051,0.00019394,2]
[350380220,1737817858001,-34022.37553896,0.00019395,2]
[350380221,1737817858011,-25243.02011654,0.00019397,2]
[350380222,1737817858021,-206472.03047374,0.00019398,2]
[350380223,1737817858031,-4237.25408337,0.00019398,2]
[350380224,1737817858040,-3231.52966756,0.00019401,2]
[350380225,1737817858050,-862.82924828,0.00019401,2]
[350380226,1737817858059,-3231.52966756,0.00019402,2]
[350380227,1737817858069,-25243.02011654,0.00019402,2]
[350380228,1737817858079,-200.0,0.00019402,2]
[350380229,1737817858089,-25243.02011654,0.00019403,2]
[350380230,1737817858098,-4237.25408337,0.00019407,2]
[350380231,1737817858108,-3231.52966756,0.00019411,2]
[350380232,1737817858119,-25243.02011654,0.00019413,2]
[350380233,1737817858129,-1302.77707309,0.00019414,2]
[350380234,1737817858139,-2104.22562119,0.00019415,2]
[350380235,1737817858149,-200.0,0.00019415,2]
[350380236,1737817858159,-686.18131853,0.00019417,2]
[350380237,1737817858169,-20887.23683814,0.00019419,2]
[350380238,1737817858179,-1302.77707309,0.00019419,2]
[350380239,1737817858189,-163.82,0.0001942,2]
[350380240,1737817858198,-862.82924828,0.00019421,2]
[350380241,1737817858208,-25243.02011654,0.00019425,2]
[350380242,1737817858218,-2104.22562119,0.00019426,2]
[350380243,1737817858227,-206472.03047374,0.00019427,2]
[350380244,1737817858237,-85884.28430623,0.0001943,2]
[350380245,1737817858247,-12711.76225011,0.00019431,2]
[350380246,1737817858256,-862.82924828,0.00019435,2]
[350380247,1737817858266,-918.23130546,0.0001944,2]
[350380248,1737817858276,-200.0,0.00019441,2]
[350380249,1737817858290,-90414.7473831,0.00019443,2]
[350380250,1737817858300,-20887.23683814,0.00019444,2]
[350380251,1737817858310,-3231.52966756,0.00019445,2]
[350380252,1737817858321,-3231.52966756,0.00019446,2]
[350380253,1737817858331,-661.05,0.0001945,2]
[350380254,1737817858340,-774.87,0.0001945,2]
[350380255,1737817858351,-622.57,0.0001945,2]
[350380256,1737817858361,-1023.31,0.0001945,2]
[350380257,1737817858371,-984.99,0.0001945,2]
[350380258,1737817858381,-1446.5,0.0001945,2]
[350380259,1737817858392,-710.7,0.0001945,2]
[350380260,1737817858401,-206472.03047374,0.00019451,2]
[350380261,1737817858411,-1337.53,0.00019451,2]
[350380262,1737817858422,-459.82,0.00019451,2]
[350380263,1737817858434,-657.38,0.00019451,2]
[350380264,1737817858445,-997.01,0.00019451,2]
[350380265,1737817858455,-600.23,0.00019451,2]
[350380266,1737817858465,-1729.67,0.00019451,2]
[350380267,1737817858479,-619.83,0.00019451,2]
[350380268,1737817858490,-624.67,0.00019451,2]
[350380269,1737817858502,-806.03,0.00019451,2]
[350380270,1737817858515,-984.41,0.00019451,2]
[350380271,1737817858527,-1058.09,0.00019451,2]
[350380272,1737817858538,-961.97,0.00019451,2]
[350380273,1737817858551,-1405.7,0.00019451,2]
[350380274,1737817858562,-437.3,0.00019451,2]
[350380275,1737817858573,-794.91,0.00019451,2]
[350380276,1737817858583,-12387.94726051,0.00019453,2]
[350380277,1737817858593,-1302.77707309,0.00019453,2]
[350380278,1737817858605,-504.92360409,0.00019453,2]
[350380279,1737817858615,-4237.25408336,0.00019454,2]
[350380280,1737817858624,-893.14347445,0.00019454,2]
[350380281,1737817858634,-12711.76225011,0.00019456,2]
[350380282,1737817858644,-504.92360409,0.00019457,2]
[350380283,1737817858654,-862.82924828,0.00019458,2]
[350380284,1737817858663,-4237.25408337,0.00019461,2]
[350380285,1737817858673,-85884.28430623,0.00019465,2]
[350380286,1737817858683,-4237.25408336,0.00019466,2]
[350380287,1737817858692,-85884.28430623,0.00019475,2]
[350380288,1737817858702,-893.14347445,0.00019477,2]
[350380289,1737817858713,-4237.25408337,0.00019478,2]
[350380290,1737817858722,-20887.23683814,0.0001948,2]
[350380291,1737817858732,-12387.94726051,0.00019484,2]
[350380292,1737817858742,-1297.14587394,0.00019486,2]
[350380293,1737817858753,-176.7597565,0.00019488,2]
[350380294,1737817858763,-2104.22562119,0.00019488,2]
[350380295,1737817858774,-1302.77707309,0.00019492,2]
[350380296,1737817858784,-2104.22562119,0.00019492,2]
[350380297,1737817858794,-918.23130546,0.00019494,2]
[350380298,1737817858805,-200.0,0.00019494,2]
[350380299,1737817858815,-206472.03047374,0.00019494,2]
[350380300,1737817858825,-4237.25408336,0.00019494,2]
[350380301,1737817858835,-862.82924828,0.00019495,2]
[350380302,1737817858846,-34022.37553896,0.00019495,2]
[350380303,1737817859008,-85884.28430623,0.00019496,2]
[350380304,1737817859020,-505.9015117,0.00019499,2]
[350380305,1737817859030,-1446.5,0.00019499,2]
[350380306,1737817859040,-250000.0,0.000195,2]
[350380307,1737817859050,-838.96,0.00019529,2]
[350380308,1737817859060,-645.66,0.00019529,2]
[350380309,1737817859071,-1456.98,0.00019529,2]
[350380310,1737817859081,-228.06318773,0.00019573,2]
[350380311,1737817859090,-661.05,0.00019587,2]
[350380312,1737817859100,-774.87,0.00019587,2]
[350380313,1737817859110,-622.57,0.00019587,2]
[350380314,1737817859121,-1023.31,0.00019587,2]
[350380315,1737817859131,-984.99,0.00019587,2]
[350380316,1737817859141,-710.7,0.00019587,2]
[350380317,1737817859151,-1337.53,0.00019588,2]
[350380318,1737817859161,-657.38,0.00019588,2]
[350380319,1737817859172,-997.01,0.00019588,2]
[350380320,1737817859182,-600.23,0.00019588,2]
[350380321,1737817859191,-1729.67,0.00019588,2]
[350380322,1737817859202,-619.83,0.00019588,2]
[350380323,1737817859213,-624.67,0.00019588,2]
[350380324,1737817859223,-806.03,0.00019588,2]
[350380325,1737817859233,-984.41,0.00019588,2]
[350380326,1737817859243,-1058.09,0.00019588,2]
[350380327,1737817859253,-961.97,0.00019588,2]
[350380328,1737817859263,-1405.7,0.00019588,2]
[350380329,1737817859272,-794.91,0.00019588,2]
[350380330,1737817859282,-500.0,0.00019616,2]
[350380331,1737817859292,-11008.57607701,0.00019661,2]
[350380332,1737817859303,-838.96,0.00019666,2]
[350380333,1737817859313,-645.66,0.00019666,2]
[350380334,1737817859322,-1456.98,0.00019666,2]
[350380335,1737817859333,-152.0,0.00019713,3]
[350380336,1737817859342,-661.13,0.00019724,2]
[350380337,1737817859352,-775.01,0.00019724,2]
[350380338,1737817859363,-622.79,0.00019724,2]
[350380339,1737817859373,-1023.54327234,0.00019724,2]
[350380340,1737817859383,-985.17600176,0.00019724,2]
[350380341,1737817859393,-710.71279587,0.00019724,2]
[350380342,1737817859403,-1337.53,0.00019725,2]
[350380343,1737817859412,-657.38,0.00019725,2]
[350380344,1737817859422,-997.01,0.00019725,2]
[350380345,1737817859435,-600.23,0.00019725,2]
[350380346,1737817859446,-1729.67,0.00019725,2]
[350380347,1737817859456,-619.88596153,0.00019725,2]
[350380348,1737817859466,-624.67,0.00019725,2]
[350380349,1737817859477,-120.33495396,0.00019725,2]
[350380350,1737817859501,-500.0,0.00017259,2]
[350380351,1737817859511,-685.82504604,0.00019725,2]
[350380352,1737817859522,-984.63,0.00019725,2]
[350380353,1737817859533,-1058.12,0.00019725,2]
[350380354,1737817859543,-961.97,0.00019725,2]
[350380355,1737817859553,-1405.7,0.00019725,2]
[350380356,1737817859563,-795.11,0.00019725,2]
[350380357,1737817859573,-1297.14587394,0.00019728,2]
[350380358,1737817859583,-838.96,0.00019803,2]
[350380359,1737817859594,-645.66,0.00019803,2]
[350380360,1737817859605,-1456.98,0.00019803,2]
[350380361,1737817859614,-252.91629582,0.0001983,2]
[350380362,1737817859625,-686.18131847,0.00019831,2]
[350380363,1737817859635,-1337.53,0.00019862,2]
[350380364,1737817859645,-657.38,0.00019862,2]
[350380365,1737817859655,-997.01,0.00019862,2]
[350380366,1737817859665,-600.23,0.00019862,2]
[350380367,1737817859674,-1729.67,0.00019862,2]
[350380368,1737817859684,-624.67,0.00019862,2]
[350380369,1737817859694,-961.97,0.00019862,2]
[350380370,1737817859703,-1405.7,0.00019862,2]
[350380371,1737817859712,-156.46,0.00019863,2]
[350380372,1737817859722,-1152.0,0.00019869,2]
[350380373,1737817859731,-1000.0,0.00019897,2]
[350380374,1737817859741,-2100.0,0.000199,7]
[350380375,1737817859751,-838.96,0.0001994,2]
[350380376,1737817859761,-645.66,0.0001994,2]
[350380377,1737817859770,-1456.98,0.0001994,2]
[350380378,1737817859779,-1297.14587394,0.00019969,2]
[350380379,1737817859789,-1337.53,0.00019999,2]
[350380380,1737817859798,-657.38,0.00019999,2]
[350380381,1737817859808,-997.01,0.00019999,2]
[350380382,1737817859818,-600.23,0.00019999,2]
[350380383,1737817859827,-1729.67,0.00019999,2]
[350380384,1737817859837,-624.67,0.00019999,2]
[350380385,1737817859847,-961.97,0.00019999,2]
[350380386,1737817859858,-1405.7,0.00019999,2]
[350380387,1737817859868,-2110.0,0.0002,2]
[350380388,1737817859878,-1000.0,0.0002,2]
[350380389,1737817859887,-150.0,0.0002,2]
[350380390,1737817859897,-250.0,0.0002,2]
[350380391,1737817859906,-1000.0,0.00020042,2]
[350380392,1737817859917,-838.96,0.00020077,2]
[350380393,1737817859926,-645.66,0.00020077,2]
[350380394,1737817859935,-1456.98,0.00020077,2]
[350380395,1737817859945,-947.39,0.00020082,2]
[350380396,1737817859955,-438.79,0.00020082,2]
[350380397,1737817859965,-163.82,0.00020089,2]
[350380398,1737817859976,-150.0,0.00020118,2]
[350380399,1737817859986,-1337.53,0.00020136,2]
[350380400,1737817859996,-657.38,0.00020136,2]
[350380401,1737817860006,-997.01,0.00020136,2]
[350380402,1737817860017,-600.23,0.00020136,2]
[350380403,1737817860026,-1729.67,0.00020136,2]
[350380404,1737817860036,-624.67,0.00020136,2]
[350380405,1737817860046,-961.97,0.00020136,2]
[350380406,1737817860059,-1405.7,0.00020136,2]
[350380407,1737817860069,-576.45196716,0.00020161,2]
[350380408,1737817860081,-150.0,0.00020169,2]
[350380409,1737817860091,-150.0,0.00020169,2]
[350380410,1737817860100,-156.063,0.00020169,2]
[350380411,1737817860110,-158.189,0.00020169,2]
[350380412,1737817860120,-150.419,0.00020169,2]
[350380413,1737817860130,-150.0,0.00020169,2]
[350380414,1737817860139,-150.0,0.00020169,2]
[350380415,1737817860149,-646.127,0.00020169,2]
[350380416,1737817860158,-1270.0,0.00020169,2]
[350380417,1737817860168,-567.0,0.00020169,2]
[350380418,1737817860179,-150.0,0.00020169,2]
[350380419,1737817860190,-636.0,0.00020169,2]
[350380420,1737817860201,-1865.0,0.00020169,2]
[350380421,1737817860211,-1262.0,0.00020169,2]
[350380422,1737817860220,-782.0,0.00020169,2]
[350380423,1737817860230,-907.0,0.00020169,2]
[350380424,1737817860239,-2949.0,0.00020169,2]
[350380425,1737817860249,-538.0,0.00020169,2]
[350380426,1737817860259,-3987.0,0.00020169,2]
[350380427,1737817860268,-150.487,0.00020169,2]
[350380428,1737817860278,-3905.0,0.00020169,2]
[350380429,1737817860287,-1177.0,0.00020169,2]
[350380430,1737817860296,-150.0,0.00020169,2]
[350380431,1737817860307,-1174.235,0.00020169,2]
[350380432,1737817860316,-11008.57607701,0.00020191,2]
[350380433,1737817860327,-1000.0,0.000202,2]
[350380434,1737817860338,-1297.14587394,0.0002021,2]
[350380435,1737817860347,-839.12,0.00020214,2]
[350380436,1737817860357,-645.85,0.00020214,2]
[350380437,1737817860367,-1457.20632018,0.00020214,2]
[350380438,1737817860376,-686.18131847,0.00020245,2]
[350380439,1737817860385,-150.0,0.00020254,2]
[350380440,1737817860396,-1337.53,0.00020273,2]
[350380441,1737817860405,-657.38,0.00020273,2]
[350380442,1737817860415,-997.01,0.00020273,2]
[350380443,1737817860425,-600.23,0.00020273,2]
[350380444,1737817860436,-1729.67,0.00020273,2]
[350380445,1737817860446,-624.67,0.00020273,2]
[350380446,1737817860456,-961.97,0.00020273,2]
[350380447,1737817860466,-1405.7,0.00020273,2]
[350380448,1737817860477,-150.0,0.00020318,2]
[350380449,1737817860486,-1000.0,0.00020323,2]
[350380450,1737817860496,-150.0,0.00020328,2]
[350380451,1737817860505,-1000.0,0.00020331,2]
[350380452,1737817860517,-1446.5,0.00020355,2]